[Event "Live Chess"]
[Site "Chess.com"]
[Date "2023.05.21"]
[Round "-"]
[White "Delacorta"]
[Black "martynstanley"]
[Result "1-0"]
[WhiteElo "1385"]
[BlackElo "1024"]
[TimeControl "300"]
[EndTime "6:49:58 PDT"]
[Termination "Delacorta won by checkmate"]

1. d4 {[%clk 0:04:57.5]} 1... e6 {[%clk 0:04:59.3]} 2. Nf3 {[%clk 0:04:56.6]}
2... d5 {[%clk 0:04:58.5]} 3. e3 {[%clk 0:04:55.8]} 3... c5 {[%clk 0:04:57.4]}
4. Bd3 {[%clk 0:04:54.7]} 4... Nc6 {[%clk 0:04:55]} 5. b3 {[%clk 0:04:53.7]}
5... Qb6 {[%clk 0:04:53.7]} 6. Bb2 {[%clk 0:04:51.7]} 6... Nh6 {[%clk
0:04:52.5]} 7. a3 {[%clk 0:04:34.9]} 7... Nf5 {[%clk 0:04:51.4]} 8. O-O {[%clk
0:04:31.1]} 8... cxd4 {[%clk 0:04:50.4]} 9. exd4 {[%clk 0:04:23.4]} 9... Qc7
{[%clk 0:04:47.5]} 10. Bxf5 {[%clk 0:04:15.8]} 10... exf5 {[%clk 0:04:45.5]} 11.
Re1+ {[%clk 0:04:11.2]} 11... Be7 {[%clk 0:04:43.4]} 12. Nc3 {[%clk 0:03:58.5]}
12... b6 {[%clk 0:04:42.2]} 13. Nxd5 {[%clk 0:03:57.4]} 13... Qd6 {[%clk
0:04:37.2]} 14. Nxe7 {[%clk 0:03:44.7]} 14... Nxe7 {[%clk 0:04:35.3]} 15. a4
{[%clk 0:03:41]} 15... Bb7 {[%clk 0:04:34]} 16. Ba3 {[%clk 0:03:39]} 16... Qd7
{[%clk 0:04:22.6]} 17. Rxe7+ {[%clk 0:03:31.9]} 17... Qxe7 {[%clk 0:04:20.4]}
18. Bxe7 {[%clk 0:03:31.8]} 18... Kxe7 {[%clk 0:04:19.7]} 19. Qe2+ {[%clk
0:03:26.1]} 19... Be4 {[%clk 0:04:14.9]} 20. Nd2 {[%clk 0:03:11.1]} 20... Rae8
{[%clk 0:04:10.5]} 21. Nxe4 {[%clk 0:03:02.7]} 21... fxe4 {[%clk 0:04:08.2]} 22.
Qxe4+ {[%clk 0:03:00.5]} 22... Kd7 {[%clk 0:04:07.8]} 23. Qb7+ {[%clk
0:02:55.7]} 23... Kd6 {[%clk 0:04:05.2]} 24. d5 {[%clk 0:02:37.6]} 24... Re7
{[%clk 0:04:03.1]} 25. Qc6+ {[%clk 0:02:36.5]} 25... Ke5 {[%clk 0:04:00.8]} 26.
Re1+ {[%clk 0:02:34.1]} 26... Kd4 {[%clk 0:03:56.9]} 27. Rxe7 {[%clk 0:02:32]}
27... Rd8 {[%clk 0:03:51.6]} 28. c3+ {[%clk 0:02:24.4]} 28... Kd3 {[%clk
0:03:49.5]} 29. Qc4+ {[%clk 0:02:20.9]} 29... Kc2 {[%clk 0:03:48.4]} 30. Re2+
{[%clk 0:02:14.9]} 30... Kb1 {[%clk 0:03:45.4]} 31. Qd3+ {[%clk 0:02:13.5]}
31... Ka1 {[%clk 0:03:43]} 32. Qc2 {[%clk 0:02:05.7]} 32... Rxd5 {[%clk
0:03:38]} 33. Qb2# {[%clk 0:02:02.7]} 1-0

[Event "Live Chess"]
[Site "Chess.com"]
[Date "2023.05.21"]
[Round "-"]
[White "LiamClery2020"]
[Black "worldchessleaguelive"]
[Result "1-0"]
[WhiteElo "1960"]
[BlackElo "1352"]
[TimeControl "300"]
[EndTime "6:50:16 PDT"]
[Termination "LiamClery2020 won by resignation"]

1. e4 {[%clk 0:04:58.9]} 1... d5 {[%clk 0:04:59.2]} 2. exd5 {[%clk 0:04:56.5]}
2... Qxd5 {[%clk 0:04:58.9]} 3. Nc3 {[%clk 0:04:55.1]} 3... Qd8 {[%clk
0:04:58.6]} 4. d4 {[%clk 0:04:53.3]} 4... Nf6 {[%clk 0:04:58.3]} 5. Bc4 {[%clk
0:04:52.3]} 5... e6 {[%clk 0:04:57]} 6. Nf3 {[%clk 0:04:47.7]} 6... Be7 {[%clk
0:04:55.6]} 7. Bg5 {[%clk 0:04:44.8]} 7... h6 {[%clk 0:04:39.9]} 8. Bxf6 {[%clk
0:04:42.4]} 8... Bxf6 {[%clk 0:04:38.8]} 9. Bd3 {[%clk 0:04:42.3]} 9... Nc6
{[%clk 0:04:36.1]} 10. Bb5 {[%clk 0:04:40.3]} 10... Bd7 {[%clk 0:04:34.3]} 11.
O-O {[%clk 0:04:38.1]} 11... a6 {[%clk 0:04:33.5]} 12. Bc4 {[%clk 0:04:35.9]}
12... b5 {[%clk 0:04:31.9]} 13. Bb3 {[%clk 0:04:31.5]} 13... O-O {[%clk
0:04:28.3]} 14. Re1 {[%clk 0:04:27.5]} 14... b4 {[%clk 0:04:27.5]} 15. Ne2
{[%clk 0:04:26.3]} 15... a5 {[%clk 0:04:26.2]} 16. Rb1 {[%clk 0:04:11.4]} 16...
a4 {[%clk 0:04:24.7]} 17. Bc4 {[%clk 0:04:09.7]} 17... Na5 {[%clk 0:04:19.8]}
18. Bd3 {[%clk 0:04:05.3]} 18... Bc6 {[%clk 0:04:11.8]} 19. Ng3 {[%clk
0:03:24.5]} 19... Bxf3 {[%clk 0:04:05.9]} 20. Qxf3 {[%clk 0:03:21.1]} 20... Qxd4
{[%clk 0:04:03.7]} 21. Ne4 {[%clk 0:03:16.4]} 21... Nc4 {[%clk 0:03:43.2]} 22.
Nxf6+ {[%clk 0:03:13.7]} 22... gxf6 {[%clk 0:03:41.2]} 23. Re4 {[%clk 0:03:12]}
23... Nd2 {[%clk 0:03:21.7]} 24. Rxd4 {[%clk 0:03:07]} 24... Nxf3+ {[%clk
0:03:20.4]} 25. gxf3 {[%clk 0:03:06.9]} 25... c5 {[%clk 0:03:09.2]} 26. Rc4
{[%clk 0:03:05.3]} 26... Rfc8 {[%clk 0:03:05.1]} 27. a3 {[%clk 0:03:02.6]} 27...
Rab8 {[%clk 0:03:00.1]} 28. axb4 {[%clk 0:03:01.2]} 28... cxb4 {[%clk
0:02:59.1]} 29. Ra1 {[%clk 0:02:54.1]} 29... Rxc4 {[%clk 0:02:56.1]} 30. Bxc4
{[%clk 0:02:53.1]} 30... Rc8 {[%clk 0:02:54.3]} 31. b3 {[%clk 0:02:51]} 31... a3
{[%clk 0:02:52.4]} 32. Kf1 {[%clk 0:02:47.8]} 32... Kf8 {[%clk 0:02:51]} 33. Ke2
{[%clk 0:02:46.5]} 33... Rd8 {[%clk 0:02:44.4]} 34. c3 {[%clk 0:02:42]} 34...
bxc3 {[%clk 0:02:38.6]} 35. Rxa3 {[%clk 0:02:40.2]} 35... Rd2+ {[%clk
0:02:37.6]} 36. Ke3 {[%clk 0:02:39.2]} 36... Rb2 {[%clk 0:02:30.9]} 37. Kd3
{[%clk 0:02:34.5]} 37... c2 {[%clk 0:02:27.7]} 38. Kd2 {[%clk 0:02:30]} 38...
Ke7 {[%clk 0:02:25.5]} 39. Kc1 {[%clk 0:02:27]} 39... Rb1+ {[%clk 0:02:22.4]}
40. Kxc2 {[%clk 0:02:25.9]} 40... Rf1 {[%clk 0:02:21.7]} 41. Bxf1 {[%clk
0:02:25]} 1-0

[Event "Live Chess"]
[Site "Chess.com"]
[Date "2023.05.21"]
[Round "-"]
[White "GMHarry-youtube"]
[Black "elephantgerrald"]
[Result "1-0"]
[WhiteElo "2040"]
[BlackElo "677"]
[TimeControl "300"]
[EndTime "6:50:16 PDT"]
[Termination "GMHarry-youtube won by checkmate"]

1. e4 {[%clk 0:04:59.2]} 1... e5 {[%clk 0:04:53.3]} 2. Nf3 {[%clk 0:04:58.5]}
2... Nf6 {[%clk 0:04:45]} 3. Nxe5 {[%clk 0:04:56.6]} 3... d6 {[%clk 0:04:43.8]}
4. Nxf7 {[%clk 0:04:49.2]} 4... Kxf7 {[%clk 0:04:42]} 5. d4 {[%clk 0:04:47.9]}
5... Nxe4 {[%clk 0:04:39.7]} 6. Qh5+ {[%clk 0:04:44.4]} 6... g6 {[%clk
0:04:37.3]} 7. Qd5+ {[%clk 0:04:42.7]} 7... Be6 {[%clk 0:04:32.1]} 8. Qxe4
{[%clk 0:04:40.2]} 8... c6 {[%clk 0:04:25.1]} 9. Bd3 {[%clk 0:03:52.2]} 9... d5
{[%clk 0:04:21.5]} 10. Qf3+ {[%clk 0:03:50.6]} 10... Kg7 {[%clk 0:04:18.6]} 11.
O-O {[%clk 0:03:49.1]} 11... Bd6 {[%clk 0:04:13.7]} 12. Re1 {[%clk 0:03:47.7]}
12... Bf7 {[%clk 0:04:07]} 13. Bf4 {[%clk 0:03:39.3]} 13... Bxf4 {[%clk
0:03:58.6]} 14. Qxf4 {[%clk 0:03:39.2]} 14... Rf8 {[%clk 0:03:49.4]} 15. Qe5+
{[%clk 0:03:35.4]} 15... Kh6 {[%clk 0:03:46.3]} 16. Re3 {[%clk 0:03:33]} 16...
Nd7 {[%clk 0:03:38.7]} 17. Rh3+ {[%clk 0:03:31.3]} 17... Qh4 {[%clk 0:03:18.6]}
18. Rxh4# {[%clk 0:03:31.2]} 1-0

[Event "Live Chess"]
[Site "Chess.com"]
[Date "2023.05.21"]
[Round "-"]
[White "PantherCal"]
[Black "LiamBellwood"]
[Result "0-1"]
[WhiteElo "1820"]
[BlackElo "1905"]
[TimeControl "300"]
[EndTime "6:50:23 PDT"]
[Termination "LiamBellwood won on time"]

1. e4 {[%clk 0:04:58.6]} 1... e6 {[%clk 0:04:59.9]} 2. d4 {[%clk 0:04:57.5]}
2... d5 {[%clk 0:04:59.8]} 3. exd5 {[%clk 0:04:57.4]} 3... exd5 {[%clk
0:04:59.7]} 4. Bd3 {[%clk 0:04:55.7]} 4... Bd6 {[%clk 0:04:58.2]} 5. Nf3 {[%clk
0:04:55.2]} 5... Ne7 {[%clk 0:04:57.5]} 6. O-O {[%clk 0:04:54.8]} 6... Bg4
{[%clk 0:04:55.5]} 7. Bg5 {[%clk 0:04:53.6]} 7... f6 {[%clk 0:04:54.5]} 8. Bh4
{[%clk 0:04:52.2]} 8... Nbc6 {[%clk 0:04:54.4]} 9. c3 {[%clk 0:04:50.6]} 9...
Qd7 {[%clk 0:04:53.4]} 10. Nbd2 {[%clk 0:04:49.9]} 10... O-O-O {[%clk
0:04:51.8]} 11. b4 {[%clk 0:04:49.5]} 11... g5 {[%clk 0:04:50.2]} 12. Bg3 {[%clk
0:04:48.3]} 12... Rde8 {[%clk 0:04:49.7]} 13. Nb3 {[%clk 0:04:44.2]} 13... h5
{[%clk 0:04:47.2]} 14. b5 {[%clk 0:04:42.9]} 14... Nd8 {[%clk 0:04:45.5]} 15.
Nc5 {[%clk 0:04:42]} 15... Bxc5 {[%clk 0:04:39.9]} 16. dxc5 {[%clk 0:04:41.9]}
16... h4 {[%clk 0:04:36.9]} 17. Qa4 {[%clk 0:04:26.1]} 17... Kb8 {[%clk
0:04:31]} 18. c6 {[%clk 0:04:00.9]} 18... bxc6 {[%clk 0:04:05.3]} 19. bxc6
{[%clk 0:03:59.2]} 19... Nexc6 {[%clk 0:04:05.2]} 20. Rab1+ {[%clk 0:03:57.6]}
20... Ka8 {[%clk 0:04:00.6]} 21. Bxc7 {[%clk 0:02:45.5]} 21... Qxc7 {[%clk
0:03:50.2]} 22. Nd4 {[%clk 0:02:41.9]} 22... Nxd4 {[%clk 0:03:15.1]} 23. cxd4
{[%clk 0:02:41.8]} 23... Bd7 {[%clk 0:03:08.9]} 24. Qb3 {[%clk 0:02:31.7]} 24...
h3 {[%clk 0:02:25.4]} 25. Rfc1 {[%clk 0:02:05.9]} 25... Bc6 {[%clk 0:02:07.9]}
26. g3 {[%clk 0:01:19.2]} 26... Nf7 {[%clk 0:02:00]} 27. Bb5 {[%clk 0:01:10.5]}
27... Nd8 {[%clk 0:01:46.9]} 28. Qc2 {[%clk 0:00:14.3]} 28... Re6 {[%clk
0:01:39.6]} 29. Qc5 {[%clk 0:00:11.9]} 29... Qd7 {[%clk 0:01:33]} 30. Bxc6+
{[%clk 0:00:04.8]} 30... Rxc6 {[%clk 0:01:32.9]} 31. Qb5 {[%clk 0:00:00.9]}
31... Rxc1+ {[%clk 0:01:31.6]} 0-1

[Event "Live Chess"]
[Site "Chess.com"]
[Date "2023.05.21"]
[Round "-"]
[White "peter-785"]
[Black "LL220284LL"]
[Result "0-1"]
[WhiteElo "1171"]
[BlackElo "2289"]
[TimeControl "300"]
[EndTime "6:50:29 PDT"]
[Termination "LL220284LL won on time"]

1. e4 {[%clk 0:04:58.2]} 1... c6 {[%clk 0:04:58.6]} 2. Nf3 {[%clk 0:04:57.3]}
2... d5 {[%clk 0:04:57.4]} 3. exd5 {[%clk 0:04:55.6]} 3... cxd5 {[%clk
0:04:57.3]} 4. d4 {[%clk 0:04:54.9]} 4... Nf6 {[%clk 0:04:56.5]} 5. Be2 {[%clk
0:04:51.9]} 5... Bf5 {[%clk 0:04:55.9]} 6. O-O {[%clk 0:04:47.4]} 6... e6 {[%clk
0:04:55.5]} 7. Bd3 {[%clk 0:04:41.8]} 7... Bxd3 {[%clk 0:04:53.9]} 8. Qxd3
{[%clk 0:04:40.2]} 8... Nbd7 {[%clk 0:04:53.5]} 9. Bg5 {[%clk 0:04:36.7]} 9...
Bd6 {[%clk 0:04:51.9]} 10. Nbd2 {[%clk 0:04:30.3]} 10... h6 {[%clk 0:04:50.3]}
11. Bxf6 {[%clk 0:04:23.5]} 11... Nxf6 {[%clk 0:04:48.9]} 12. Ne5 {[%clk
0:04:18.6]} 12... O-O {[%clk 0:04:47.5]} 13. Ndf3 {[%clk 0:04:07.9]} 13... Rc8
{[%clk 0:04:45]} 14. c3 {[%clk 0:04:06.7]} 14... Ne4 {[%clk 0:04:43.6]} 15. Nd2
{[%clk 0:04:01.7]} 15... Nxd2 {[%clk 0:04:40.9]} 16. Qxd2 {[%clk 0:04:00.8]}
16... b5 {[%clk 0:04:35.3]} 17. a3 {[%clk 0:03:50.2]} 17... a5 {[%clk 0:04:32]}
18. f4 {[%clk 0:03:48.1]} 18... Qb6 {[%clk 0:04:30.1]} 19. Kh1 {[%clk
0:03:45.8]} 19... b4 {[%clk 0:04:29]} 20. axb4 {[%clk 0:03:44.1]} 20... axb4
{[%clk 0:04:28.9]} 21. Nd7 {[%clk 0:03:40]} 21... Qb5 {[%clk 0:04:23.5]} 22.
Nxf8 {[%clk 0:03:36.6]} 22... Bxf8 {[%clk 0:04:23.4]} 23. cxb4 {[%clk
0:03:27.6]} 23... Bxb4 {[%clk 0:04:20.6]} 24. Qd1 {[%clk 0:03:20.5]} 24... g6
{[%clk 0:04:18]} 25. b3 {[%clk 0:03:11.5]} 25... Qb6 {[%clk 0:04:14.7]} 26. Ra4
{[%clk 0:02:42]} 26... Bd6 {[%clk 0:04:08.2]} 27. Qa1 {[%clk 0:02:02.2]} 27...
Qxb3 {[%clk 0:04:03.5]} 28. Ra8 {[%clk 0:01:55.1]} 28... Rb8 {[%clk 0:04:01.1]}
29. Rxb8+ {[%clk 0:01:52.3]} 29... Qxb8 {[%clk 0:03:59.4]} 30. Rb1 {[%clk
0:01:48.9]} 30... Qc7 {[%clk 0:03:57.8]} 31. g3 {[%clk 0:01:38.2]} 31... Qc2
{[%clk 0:03:56.7]} 32. Rb2 {[%clk 0:01:33.3]} 32... Qe4+ {[%clk 0:03:53.7]} 33.
Kg1 {[%clk 0:01:32.3]} 33... Qxd4+ {[%clk 0:03:52.6]} 34. Kg2 {[%clk 0:01:18.9]}
34... Qe4+ {[%clk 0:03:50.8]} 35. Kh3 {[%clk 0:01:17.5]} 35... Qf5+ {[%clk
0:03:45.1]} 36. Kg2 {[%clk 0:01:14.3]} 36... Qd3 {[%clk 0:03:31.1]} 37. Ra2
{[%clk 0:00:55.8]} 37... Qe4+ {[%clk 0:03:26.6]} 38. Kh3 {[%clk 0:00:54.1]}
38... Qf5+ {[%clk 0:03:25.8]} 39. Kg2 {[%clk 0:00:53.2]} 39... Qe4+ {[%clk
0:03:19.6]} 40. Kh3 {[%clk 0:00:52.1]} 40... d4 {[%clk 0:03:19.1]} 41. Ra8+
{[%clk 0:00:43.9]} 41... Kg7 {[%clk 0:03:16.4]} 42. Ra4 {[%clk 0:00:34.1]} 42...
Qf5+ {[%clk 0:03:10.9]} 43. Kg2 {[%clk 0:00:32.4]} 43... Qd5+ {[%clk 0:03:10.1]}
44. Kh3 {[%clk 0:00:30.3]} 44... e5 {[%clk 0:03:09.1]} 45. fxe5 {[%clk
0:00:25.4]} 45... Bxe5 {[%clk 0:03:06.9]} 46. Ra5 {[%clk 0:00:19.1]} 46... Qd7+
{[%clk 0:03:02.7]} 47. Kg2 {[%clk 0:00:17.7]} 47... Qc6+ {[%clk 0:03:01.9]} 48.
Kh3 {[%clk 0:00:16.9]} 48... Bf6 {[%clk 0:03:01.1]} 49. Ra4 {[%clk 0:00:12.4]}
49... d3 {[%clk 0:02:59.1]} 50. Qd1 {[%clk 0:00:11.1]} 50... Qd7+ {[%clk
0:02:56.5]} 51. Kg2 {[%clk 0:00:08.5]} 51... d2 {[%clk 0:02:56.1]} 52. Ra2
{[%clk 0:00:05.9]} 52... Qd5+ {[%clk 0:02:54.6]} 53. Kh3 {[%clk 0:00:05.4]}
53... Qxa2 {[%clk 0:02:53.7]} 54. Kg2 {[%clk 0:00:04]} 54... Qd5+ {[%clk
0:02:52.9]} 55. Kh3 {[%clk 0:00:03.2]} 55... Qf5+ {[%clk 0:02:51.8]} 56. Kg2
{[%clk 0:00:02.5]} 56... Qe4+ {[%clk 0:02:51.5]} 57. Kh3 {[%clk 0:00:01.6]}
57... Qe1 {[%clk 0:02:51]} 0-1

[Event "Live Chess"]
[Site "Chess.com"]
[Date "2023.05.21"]
[Round "-"]
[White "davigator"]
[Black "chessfiction"]
[Result "1-0"]
[WhiteElo "2301"]
[BlackElo "2304"]
[TimeControl "300"]
[EndTime "6:50:34 PDT"]
[Termination "davigator won by resignation"]

1. e4 {[%clk 0:04:59.3]} 1... d5 {[%clk 0:04:58.1]} 2. exd5 {[%clk 0:04:58.1]}
2... c6 {[%clk 0:04:56.3]} 3. dxc6 {[%clk 0:04:56.4]} 3... e5 {[%clk 0:04:55.1]}
4. Nc3 {[%clk 0:04:53.9]} 4... Bc5 {[%clk 0:04:53.1]} 5. Nf3 {[%clk 0:04:52.3]}
5... Nf6 {[%clk 0:04:50.6]} 6. Bb5 {[%clk 0:04:50.4]} 6... O-O {[%clk
0:04:48.9]} 7. O-O {[%clk 0:04:47.6]} 7... e4 {[%clk 0:04:48.1]} 8. Ng5 {[%clk
0:04:44.8]} 8... Bf5 {[%clk 0:04:41.1]} 9. Qe2 {[%clk 0:04:41.7]} 9... Nxc6
{[%clk 0:04:38.9]} 10. Bxc6 {[%clk 0:04:38.9]} 10... bxc6 {[%clk 0:04:38.8]} 11.
Ngxe4 {[%clk 0:04:37.9]} 11... Re8 {[%clk 0:04:37.5]} 12. d3 {[%clk 0:04:36.9]}
12... Bd4 {[%clk 0:04:35.1]} 13. Qf3 {[%clk 0:04:34.4]} 13... Qd7 {[%clk
0:04:31.3]} 14. Bd2 {[%clk 0:04:29.5]} 14... Rab8 {[%clk 0:04:28.5]} 15. Rab1
{[%clk 0:04:24]} 15... h6 {[%clk 0:04:25.8]} 16. h3 {[%clk 0:04:22.3]} 16... Re7
{[%clk 0:04:21.1]} 17. Nxf6+ {[%clk 0:04:17.5]} 17... Bxf6 {[%clk 0:04:19.5]}
18. Bf4 {[%clk 0:04:14.5]} 18... Rb4 {[%clk 0:04:14.2]} 19. a3 {[%clk
0:04:12.4]} 19... Rb7 {[%clk 0:04:09.7]} 20. Na4 {[%clk 0:04:09.6]} 20... Qe8
{[%clk 0:03:54.3]} 21. b3 {[%clk 0:04:00.5]} 21... Be6 {[%clk 0:03:40.8]} 22.
Nc5 {[%clk 0:03:58.3]} 22... Bd5 {[%clk 0:03:39.7]} 23. Qg3 {[%clk 0:03:56.6]}
23... Rb5 {[%clk 0:03:34.5]} 24. b4 {[%clk 0:03:55.1]} 24... Rb6 {[%clk
0:03:02.7]} 25. Bxh6 {[%clk 0:03:52.6]} 25... Re2 {[%clk 0:02:51]} 26. c4 {[%clk
0:03:50.2]} 26... Be6 {[%clk 0:02:45.2]} 27. Be3 {[%clk 0:03:48.9]} 27... Bf5
{[%clk 0:02:41]} 28. Qf3 {[%clk 0:03:44.5]} 28... Rxe3 {[%clk 0:02:35.5]} 29.
fxe3 {[%clk 0:03:42.6]} 29... Bg6 {[%clk 0:02:33.6]} 30. Kh1 {[%clk 0:03:40.2]}
30... Rb8 {[%clk 0:02:29.7]} 31. Rbd1 {[%clk 0:03:34.2]} 31... Rd8 {[%clk
0:02:28.5]} 32. d4 {[%clk 0:03:28.8]} 32... Qe7 {[%clk 0:02:25.3]} 33. Rd2
{[%clk 0:03:25]} 33... Re8 {[%clk 0:02:24.4]} 34. Re1 {[%clk 0:03:19.9]} 34...
Bg5 {[%clk 0:02:22.5]} 35. Rde2 {[%clk 0:03:17.4]} 35... f5 {[%clk 0:02:14]} 36.
Qxc6 {[%clk 0:03:15.4]} 36... Bh4 {[%clk 0:02:12.5]} 37. Qxg6 {[%clk 0:03:12.9]}
37... Bxe1 {[%clk 0:02:11]} 38. Rxe1 {[%clk 0:03:12.2]} 1-0

[Event "Live Chess"]
[Site "Chess.com"]
[Date "2023.05.21"]
[Round "-"]
[White "HadesLearmonth"]
[Black "McSlash1"]
[Result "0-1"]
[WhiteElo "1208"]
[BlackElo "1988"]
[TimeControl "300"]
[EndTime "6:50:43 PDT"]
[Termination "McSlash1 won by resignation"]

1. e4 {[%clk 0:04:58]} 1... c5 {[%clk 0:04:59.3]} 2. Nf3 {[%clk 0:04:56.5]} 2...
d6 {[%clk 0:04:58.3]} 3. d4 {[%clk 0:04:55.4]} 3... cxd4 {[%clk 0:04:58.2]} 4.
Nxd4 {[%clk 0:04:54.4]} 4... Nf6 {[%clk 0:04:57.7]} 5. Nc3 {[%clk 0:04:52.7]}
5... g6 {[%clk 0:04:57.3]} 6. Be2 {[%clk 0:04:49.8]} 6... Bg7 {[%clk 0:04:56.7]}
7. O-O {[%clk 0:04:48]} 7... O-O {[%clk 0:04:56.3]} 8. Bg5 {[%clk 0:04:45.5]}
8... Nc6 {[%clk 0:04:55.3]} 9. a3 {[%clk 0:04:34.8]} 9... Nd7 {[%clk 0:04:52.5]}
10. b4 {[%clk 0:04:32.6]} 10... Nxd4 {[%clk 0:04:49.9]} 11. Qxd4 {[%clk
0:04:30.6]} 11... Bxd4 {[%clk 0:04:49.8]} 0-1

[Event "Live Chess"]
[Site "Chess.com"]
[Date "2023.05.21"]
[Round "-"]
[White "AttackingSnowLeopard"]
[Black "TheSmoulderingMaster"]
[Result "1-0"]
[WhiteElo "2169"]
[BlackElo "1659"]
[TimeControl "300"]
[EndTime "6:50:44 PDT"]
[Termination "AttackingSnowLeopard won by resignation"]

1. Nf3 {[%clk 0:04:58]} 1... d5 {[%clk 0:04:58.6]} 2. e3 {[%clk 0:04:40.1]} 2...
c5 {[%clk 0:04:55.7]} 3. c4 {[%clk 0:04:39.6]} 3... e6 {[%clk 0:04:53.4]} 4. b3
{[%clk 0:04:38.2]} 4... Nf6 {[%clk 0:04:50.5]} 5. Bb2 {[%clk 0:04:36.2]} 5...
Nc6 {[%clk 0:04:46.1]} 6. Be2 {[%clk 0:04:17.3]} 6... Be7 {[%clk 0:04:45]} 7.
O-O {[%clk 0:04:14]} 7... O-O {[%clk 0:04:44]} 8. d4 {[%clk 0:04:12.7]} 8...
cxd4 {[%clk 0:04:38.5]} 9. Nxd4 {[%clk 0:04:10.3]} 9... Bd6 {[%clk 0:04:31.7]}
10. Nd2 {[%clk 0:04:04.4]} 10... e5 {[%clk 0:04:26.5]} 11. Nxc6 {[%clk
0:03:57.1]} 11... bxc6 {[%clk 0:04:26.4]} 12. Nf3 {[%clk 0:03:53.6]} 12... e4
{[%clk 0:04:21.2]} 13. Nd4 {[%clk 0:03:51.6]} 13... Bd7 {[%clk 0:04:18.5]} 14.
cxd5 {[%clk 0:03:48.7]} 14... cxd5 {[%clk 0:04:16.1]} 15. Bb5 {[%clk 0:03:47.3]}
15... Bxb5 {[%clk 0:04:12.4]} 16. Nxb5 {[%clk 0:03:44.8]} 16... h5 {[%clk
0:04:10.1]} 17. Nxd6 {[%clk 0:03:41.9]} 17... Qxd6 {[%clk 0:04:08.2]} 18. Qd4
{[%clk 0:03:41.4]} 18... Rac8 {[%clk 0:04:02.1]} 19. Rac1 {[%clk 0:03:37]} 19...
Rxc1 {[%clk 0:03:56]} 20. Rxc1 {[%clk 0:03:34.7]} 20... Rd8 {[%clk 0:03:52.6]}
21. h3 {[%clk 0:03:31.9]} 21... Kh8 {[%clk 0:03:48.8]} 22. Rc5 {[%clk
0:03:29.3]} 22... Qa6 {[%clk 0:03:41.6]} 23. Rc7 {[%clk 0:03:25.6]} 23... Qe2
{[%clk 0:03:35.1]} 24. Rxf7 {[%clk 0:03:09.8]} 24... Qe1+ {[%clk 0:03:33.3]} 25.
Kh2 {[%clk 0:03:09.4]} 25... Qxf2 {[%clk 0:03:32.4]} 26. Rxf6 {[%clk 0:03:08.5]}
26... gxf6 {[%clk 0:03:28.5]} 27. Qxf6+ {[%clk 0:03:04.3]} 27... Qxf6 {[%clk
0:03:18.8]} 28. Bxf6+ {[%clk 0:03:04.2]} 28... Kg8 {[%clk 0:03:18]} 29. Bxd8
{[%clk 0:03:03.1]} 29... d4 {[%clk 0:03:17.2]} 30. exd4 {[%clk 0:03:01.3]} 1-0

[Event "Live Chess"]
[Site "Chess.com"]
[Date "2023.05.21"]
[Round "-"]
[White "SaraTang"]
[Black "sup3rm0nk3y"]
[Result "0-1"]
[WhiteElo "138"]
[BlackElo "1348"]
[TimeControl "300"]
[EndTime "6:50:45 PDT"]
[Termination "sup3rm0nk3y won by resignation"]

1. e4 {[%clk 0:04:58.1]} 1... c5 {[%clk 0:04:57.7]} 2. Bc4 {[%clk 0:04:55.9]}
2... e6 {[%clk 0:04:54.3]} 3. Nh3 {[%clk 0:04:51.6]} 3... d5 {[%clk 0:04:53.2]}
4. Bxd5 {[%clk 0:04:47.9]} 4... exd5 {[%clk 0:04:52.3]} 5. exd5 {[%clk
0:04:45.4]} 5... Qxd5 {[%clk 0:04:46.6]} 6. Ng5 {[%clk 0:04:44.1]} 6... Qxg2
{[%clk 0:04:41.2]} 7. Rf1 {[%clk 0:04:37.6]} 7... Be7 {[%clk 0:04:36.9]} 8. Ne4
{[%clk 0:04:35.2]} 8... Qxe4+ {[%clk 0:04:34.3]} 9. Qe2 {[%clk 0:04:32.8]} 9...
Qxe2+ {[%clk 0:04:31.2]} 10. Kxe2 {[%clk 0:04:31.2]} 10... Nf6 {[%clk
0:04:30.3]} 11. Rg1 {[%clk 0:04:25.8]} 11... O-O {[%clk 0:04:28.8]} 0-1

[Event "Live Chess"]
[Site "Chess.com"]
[Date "2023.05.21"]
[Round "-"]
[White "WilliWeisswurst"]
[Black "matt1979"]
[Result "0-1"]
[WhiteElo "1770"]
[BlackElo "1545"]
[TimeControl "300"]
[EndTime "6:50:54 PDT"]
[Termination "matt1979 won by checkmate"]

1. e4 {[%clk 0:04:57.7]} 1... d6 {[%clk 0:04:58.5]} 2. d4 {[%clk 0:04:55.7]}
2... Nf6 {[%clk 0:04:57.5]} 3. Bd3 {[%clk 0:04:53.5]} 3... e5 {[%clk 0:04:55.5]}
4. Nf3 {[%clk 0:04:51.7]} 4... Nbd7 {[%clk 0:04:53.4]} 5. c3 {[%clk 0:04:50.8]}
5... Be7 {[%clk 0:04:49.4]} 6. O-O {[%clk 0:04:50.2]} 6... c6 {[%clk 0:04:48.2]}
7. h3 {[%clk 0:04:49.3]} 7... Qc7 {[%clk 0:04:46.5]} 8. Re1 {[%clk 0:04:48.4]}
8... b6 {[%clk 0:04:37]} 9. Nbd2 {[%clk 0:04:46.2]} 9... h6 {[%clk 0:04:33.8]}
10. Nf1 {[%clk 0:04:45.6]} 10... g5 {[%clk 0:04:32.4]} 11. N3h2 {[%clk
0:04:40.8]} 11... Nf8 {[%clk 0:04:26.8]} 12. Ne3 {[%clk 0:04:34.9]} 12... Ng6
{[%clk 0:04:20.8]} 13. Nf5 {[%clk 0:04:32.8]} 13... Bxf5 {[%clk 0:04:18.4]} 14.
exf5 {[%clk 0:04:32]} 14... Nf4 {[%clk 0:04:15.7]} 15. Bc2 {[%clk 0:04:13.9]}
15... Rg8 {[%clk 0:03:59.2]} 16. Ng4 {[%clk 0:04:10]} 16... Nxg4 {[%clk
0:03:57.3]} 17. hxg4 {[%clk 0:03:58.8]} 17... O-O-O {[%clk 0:03:50.7]} 18. Bxf4
{[%clk 0:03:44]} 18... gxf4 {[%clk 0:03:47.3]} 19. dxe5 {[%clk 0:03:32.3]} 19...
dxe5 {[%clk 0:03:44.5]} 20. Qe2 {[%clk 0:03:30.8]} 20... f6 {[%clk 0:03:34.2]}
21. Qc4 {[%clk 0:03:17.6]} 21... h5 {[%clk 0:03:25.6]} 22. gxh5 {[%clk
0:03:03.1]} 22... Rg5 {[%clk 0:03:15.2]} 23. Bd3 {[%clk 0:02:47.6]} 23... Bc5
{[%clk 0:03:06.8]} 24. Qe6+ {[%clk 0:02:39.2]} 24... Kb8 {[%clk 0:02:50.3]} 25.
Bf1 {[%clk 0:01:51.9]} 25... Qg7 {[%clk 0:02:32.5]} 26. b4 {[%clk 0:01:33]}
26... Rg8 {[%clk 0:02:22.9]} 27. Qxc6 {[%clk 0:01:11.3]} 27... Rxh5 {[%clk
0:01:47.6]} 28. bxc5 {[%clk 0:00:52]} 28... Rgh8 {[%clk 0:01:39.2]} 29. g3
{[%clk 0:00:40.7]} 29... fxg3 {[%clk 0:01:28.7]} 30. fxg3 {[%clk 0:00:39]} 30...
Qxg3+ {[%clk 0:01:24.3]} 31. Bg2 {[%clk 0:00:32.6]} 31... Rh1# {[%clk
0:01:22.1]} 0-1